Cogmind - Beta 10.2 @@@ ROGUE MODE // 2021.07.23 @ 11:52:33 Player: Demise Result: Self-destructed Performance ------------- Evolutions (7) 3500 Regions Visited (27) 5400 Robots Destroyed (321) 1605 Value Destroyed (11983) 11983 Prototype IDs (114) 2280 Alien Tech Used (3) 600 Bonus (8584) 8584 TOTAL SCORE: 33952 Bonus ------- High Alert Combat Kills 1184 Follower Combat Kills 445 Aligned with FarCom 300 Met Data Miner 300 Met Imprinter 300 Destroyed Z-Imprinter 1000 Met Zhirov 300 Found Hidden Lab 3000 Used Core Reset Matrix 3000 Pursued by Intercept 500 Friendly Fire -1745 Cogmind --------- Core Integrity 776/1300 Matter 41/300 Energy 30/100 System Corruption 2% Temperature Cool (0) Movement Core (650) Ox12 Location -3/Research Parts ------- > --- POWER (2) -------- (None) > --- PROPULSION (5) --- Combat Antigrav System > --- UTILITY (12) ----- High-capacity Storage Unit Experimental Signal Interpreter Advanced Core Analyzer Experimental Hacking Suite > --- WEAPON (2) ------- Compact Tesla Bomb Launcher > --- INVENTORY (12) --- Matter Compressor (10) Advanced Launcher Guidance Computer Improved Transmission Jammer Advanced Hacking Suite Advanced System Shield Advanced Recalibrator Transdimensional Reconstructor Core Regenerator Advanced Plasma Cannon Molecular Deconstructor Peak State ------------ > --- POWER ------------ Micro Fission Core Graviton Reactor > --- PROPULSION ------- Combat Antigrav System Combat Antigrav System Combat Antigrav System Combat Antigrav System Combat Antigrav System > --- UTILITY ---------- High-capacity Storage Unit High-capacity Storage Unit High-capacity Storage Unit Experimental Sensor Array Experimental Signal Interpreter Advanced Core Analyzer Advanced Force Field Advanced Hacking Suite Experimental Hacking Suite Quantum Router System Purifier Mini Drone Bay > --- WEAPON ----------- Molecular Deconstructor > --- INVENTORY -------- Combat Gravmag System Experimental Heat Sink Matter Compressor Inertial Stasis Machine Advanced Launcher Guidance Computer Experimental Target Analyzer Improved Transmission Jammer Advanced Cloaking Device Experimental Core Shielding Advanced Hacking Suite Advanced Hacking Suite Advanced System Shield Long-range Tractor Beam Advanced Recalibrator Transdimensional Reconstructor Core Regenerator Integrated Dissipator Core Reset Matrix Tachyon Dispersion Ray Quantum Rifle Compact HERF Cannon Advanced Plasma Cannon Warp Cannon Hypervelocity Gauss Rifle Tri-rail Accelerator Compact Tesla Bomb Launcher Long-range Missile Launcher [Rating: 165] Favorites ----------- Power Micro Fission Core Engine Reinforced Deuterium Engine Power Core Micro Fission Core Reactor Zionite Light DM Reactor Propulsion Armored Huge Wheel Treads Armored Treads Leg Carbon-fiber Leg Wheel Armored Huge Wheel Hover Unit Combat Antigrav System Flight Unit Improved VTOL Module Utility High-capacity Storage Unit Device Long-range Sensor Array Storage High-capacity Storage Unit Processor Advanced Signal Interpreter Hackware Advanced Hacking Suite Protection Improved Light Armor Plating Weapon Flak Gun Energy Gun Zionite Phaser-S Energy Cannon Neutron Cannon Ballistic Gun Flak Gun Ballistic Cannon Tri-rail Accelerator Launcher EMP Blaster Special Weapon Remote Datajack Slashing Weapon Axe Piercing Weapon CR-A16's Pointy Stick Special Melee Weapon Datajack Build | -11 -10 -10 -9 -9 -9 -8 -8 -7 -7 -7 -7 -7 -6 -6 -6 -6 -6 -5 -5 -5 -5 -5 -4 -4 -4 -4 -3 ------- Run | Scr Mat Min Mat Min Exi Min Mat Fac Low Low Zio Dee Pro Fac Low Low Dat Pro Fac Upp Upp Zhi Pro Fac Arm Lab Res Slots Evolved 14 | . . . 2 . . . 2 2 . . . . . 2 . . . . 2 . . . . 2 . . 2 Power 1 | . . . . . . . . . . . . . . . . . . . . . . . . 1 . . . Propulsion 3 | . . . . . . . . . . . . . . . . . . . 2 . . . . 1 . . . Utility 10 | . . . 2 . . . 2 2 . . . . . 2 . . . . . . . . . . . . 2 Weapon . | . . . . . . . . . . . . . . . . . . . . . . . . . . . . Parts Attached 698 | 4 21 4 37 3 32 8 67 78 5 28 6 26 6 60 12 2 2 4 57 17 15 12 3 122 9 32 26 Power 28 | . 2 1 2 . 3 . 4 4 . . . 1 . 1 2 . . . 1 . . . . 5 . 2 . Engine 11 | . 1 . 2 . 3 . 2 3 . . . . . . . . . . . . . . . . . . . Core 13 | . 1 1 . . . . 2 1 . . . . . . 1 . . . 1 . . . . 5 . 1 . Reactor 4 | . . . . . . . . . . . . 1 . 1 1 . . . . . . . . . . 1 . Propulsion 66 | 2 . . 7 . 2 1 13 3 . 4 2 . . 4 . . . . 4 . 4 2 . 9 . 5 4 Treads 40 | 2 . . 7 . 2 1 9 2 . 2 . . . 2 . . . . . . 4 1 . 8 . . . Leg 3 | . . . . . . . 2 . . . 1 . . . . . . . . . . . . . . . . Wheel 11 | . . . . . . . 1 1 . 2 1 . . 2 . . . . 4 . . . . . . . . Hover 9 | . . . . . . . . . . . . . . . . . . . . . . . . . . 5 4 Flight 3 | . . . . . . . 1 . . . . . . . . . . . . . . 1 . 1 . . . Utility 334 | . 5 . 11 1 17 1 18 43 5 8 2 12 5 40 8 1 1 1 29 12 6 7 2 64 5 18 12 Device 166 | . . . 1 . 2 . 6 19 3 7 2 4 5 20 5 1 . 1 17 6 2 3 2 38 5 9 8 Storage 21 | . 1 . 3 . 9 . 2 1 . . . 1 . 3 . . . . . . . . . 1 . . . Processor 17 | . 3 . 3 . . . 4 1 . . . 1 . 2 . . . . 1 . . . . 1 . . 1 Hackware 17 | . . . . . . . 1 4 . . . . . 5 . . . . 3 . . . . . . 3 1 Protection 113 | . 1 . 4 1 6 1 5 18 2 1 . 6 . 10 3 . 1 . 8 6 4 4 . 24 . 6 2 Artifact . | . . . . . . . . . . . . . . . . . . . . . . . . . . . . Weapon 270 | 2 14 3 17 2 10 6 32 28 . 16 2 13 1 15 2 1 1 3 23 5 5 3 1 44 4 7 10 Energy Gun 40 | 1 2 . . . . 1 6 2 . . . 4 . 6 . 1 . 1 12 . . . . . . 1 3 Energy Cannon 38 | . . . . . . . 3 1 . . . . . 1 . . . . 1 2 2 . 1 22 1 1 3 Ballistic Gun 110 | . 7 2 12 1 6 4 20 15 . 7 . 7 . 6 1 . 1 1 7 . . 1 . 10 1 . 1 Ballistic Cannon 12 | . . . . . . . . . . . . . . . . . . . 1 . . . . 8 . 2 1 Launcher 31 | . . . 5 1 3 1 2 4 . 2 . . . 2 1 . . 1 . 2 3 1 . 1 1 . 1 Special Weapon 15 | 1 5 1 . . . . . . . 1 1 . . . . . . . 1 1 . 1 . 1 . 1 1 Impact Weapon . | . . . . . . . . . . . . . . . . . . . . . . . . . . . . Slashing Weapon 13 | . . . . . . . 1 6 . 5 1 . . . . . . . . . . . . . . . . Piercing Weapon 7 | . . . . . . . . . . . . 1 1 . . . . . . . . . . 2 1 2 . Special Melee Weapon 4 | . . . . . 1 . . . . 1 . 1 . . . . . . 1 . . . . . . . . Unidentified Prototypes 31 | . . . . . 1 . 1 1 . 1 1 7 . . . . . . 1 . . 3 . 3 1 10 1 Parts Lost 84 | . . . 1 . 4 1 13 9 . . . 4 . 8 . . . . 5 . 2 . . 9 . 7 21 Power 10 | . . . . . . . 2 1 . . . 1 . 1 . . . . 1 . . . . . . 2 2 Propulsion 16 | . . . . . 2 . 3 1 . . . . . 1 . . . . . . . . . 3 . 2 4 Utility 34 | . . . 1 . . 1 3 4 . . . 1 . 5 . . . . 2 . 1 . . 2 . 3 11 Weapon 24 | . . . . . 2 . 5 3 . . . 2 . 1 . . . . 2 . 1 . . 4 . . 4 Highest Loss Streak 14 | . . . 1 . 2 1 6 2 . . . 4 . 5 . . . . 4 . 1 . . 2 . 4 14 Average Slot Usage (%) 91 | . 88 100 99 100 92 99 94 97 84 83 83 83 84 92 93 93 93 93 87 87 91 98 100 88 77 90 89 Engine 3 | . . . 9 11 10 11 3 6 7 7 7 . . . . . . . . . . . . . . . . Core 2 | . 6 14 1 . . . 4 . . . . . . . . . . . 2 5 5 5 5 9 10 5 3 Reactor 1 | . . . . . . . . . . . . 6 7 5 6 6 6 6 2 . . . . . . 4 3 Treads 10 | . 28 28 22 22 22 22 14 13 . . . . . . . . . . . . 9 23 23 16 10 . . Wheel 3 | . . . . . . . . . 7 6 7 7 7 5 6 6 6 6 10 11 5 . . . . . . Hover 1 | . . . . . . . . . . . . . . . . . . . . . . . . . . 22 22 Device 5 | . . . 1 . . . 2 5 7 6 7 5 6 11 10 12 13 13 9 10 9 5 5 6 9 7 13 Storage 25 | . 10 14 23 33 23 33 31 30 30 30 30 30 30 26 26 26 26 26 23 23 23 23 23 21 21 17 13 Processor 6 | . 11 . 8 . . . 9 11 7 7 7 7 7 7 6 6 6 6 5 5 5 5 5 5 5 5 7 Hackware 7 | . . . . . . . 2 5 . . . . . 14 20 20 20 20 17 17 17 17 17 15 15 19 15 Protection 5 | . 3 14 10 11 15 11 5 6 6 7 7 8 7 4 2 . . . . . 1 3 4 2 . 1 . Energy Gun 1 | . 11 . . . . . . . . . . 5 . 3 . 4 6 2 6 . . . . . . . . Ballistic Gun 10 | . 8 27 21 21 16 20 15 11 15 11 7 6 11 7 12 7 6 9 3 . . 2 . 2 . . . Naked Turns . | . . . . . . . . . . . . . . . . . . . . . . . . . . . . Heaviest Build 191 | 3 43 42 101 101 129 115 145 177 191 179 173 176 156 157 166 156 160 158 163 161 155 163 155 166 150 168 150 Greatest Support 180 | 20 40 40 40 40 40 40 44 44 28 28 28 28 28 58 28 28 28 28 56 56 118 118 118 180 98 161 150 Greatest Overweight (x) 41 | . 1 1 2 2 3 2 8 6 6 6 6 6 5 5 5 5 5 5 5 2 5 1 1 1 1 41 38 Average Overweight (x) 3 | . . 1 1 2 2 2 3 3 5 5 6 5 5 4 5 5 5 5 2 2 1 1 1 . 1 5 . Largest Inventory Capacity 42 | 4 12 12 32 26 40 28 42 36 36 36 36 36 36 36 36 36 36 36 36 36 36 36 36 36 36 36 28 Average Capacity 31 | 4 9 12 20 26 25 28 32 36 36 36 36 36 36 36 36 36 36 36 36 36 36 36 36 36 36 30 27 Most Carried 36 | 4 12 12 24 26 28 28 36 36 36 36 36 36 36 36 36 36 36 36 36 36 36 36 36 36 36 36 28 Average Carried 30 | 3 7 11 19 25 21 27 31 34 35 34 34 35 35 33 35 36 36 36 35 35 35 35 36 35 35 29 27 Final Capacity 36 | 4 12 12 26 26 28 28 36 36 36 36 36 36 36 36 36 36 36 36 36 36 36 36 36 36 36 28 12 Final Carried 36 | 4 12 12 23 26 28 27 36 36 36 29 36 35 36 36 36 36 36 36 36 36 35 36 36 36 35 28 11 Class Distribution -------------------- 55% | Hauler-Mutant 35% | Hacker-Mutant 5% | Mutant Dominant Class ---------------- Mutant | -10/Materials Mutant | -10/Mines Hauler-Mutant | -9/Materials Hauler-Mutant | -9/Mines Hauler-Mutant | -9/Exiles Hauler-Mutant | -8/Mines Hauler-Mutant | -8/Materials Hauler-Mutant | -7/Factory Hauler-Mutant | -7/Lower Caves Hauler-Mutant | -7/Lower Caves Hauler-Mutant | -7/Zion Hauler-Mutant | -7/Deep Caves Hauler-Mutant | -6/Proximity Caves Hauler-Mutant | -6/Factory Hacker-Mutant | -6/Lower Caves Hacker-Mutant | -6/Lower Caves Hacker-Mutant | -6/Data Miner Hacker-Mutant | -5/Proximity Caves Hacker-Mutant | -5/Factory Hacker-Mutant | -5/Upper Caves Hacker-Mutant | -5/Upper Caves Hacker-Mutant | -5/Zhirov Hacker-Mutant | -4/Proximity Caves Hacker-Mutant | -4/Factory Hacker-Mutant | -4/Armory Wizard-Mutant | -4/Lab Hacker-Mutant | -3/Research Resources | -11 -10 -10 -9 -9 -9 -8 -8 -7 -7 -7 -7 -7 -6 -6 -6 -6 -6 -5 -5 -5 -5 -5 -4 -4 -4 -4 -3 ----------- Run | Scr Mat Min Mat Min Exi Min Mat Fac Low Low Zio Dee Pro Fac Low Low Dat Pro Fac Upp Upp Zhi Pro Fac Arm Lab Res Matter Collected 13987 | 240 452 58 862 91 1136 257 1392 1786 50 406 50 297 413 1114 331 67 . 115 806 392 239 324 70 2135 101 349 454 Remotely 1876 | . . . . . . . . . . 160 . . 115 256 115 . . . 185 65 . . . 599 71 . 310 Salvage Created 15013 | 192 434 81 1396 30 558 300 2275 2864 . 137 62 297 222 1016 100 . . 78 857 503 332 497 . 2130 118 80 454 Parts 843 | 15 23 8 104 . 62 14 119 136 . 2 2 18 3 69 . . . 1 63 23 30 19 . 107 5 8 12 Haulers Intercepted 12 | . . . 6 . . . 5 1 . . . . . . . . . . . . . . . . . . . Recyclers Shooed 25 | 1 1 . . . . . 4 2 . . . . . 11 . . . . 2 . . . . 3 . . 1 Parts Field Recycled . | . . . . . . . . . . . . . . . . . . . . . . . . . . . . Retrieved Matter . | . . . . . . . . . . . . . . . . . . . . . . . . . . . . Parts Self-Destructed 48 | . . . . . . . . . . 6 1 . 3 . . . . 6 . 7 10 15 . . . . . Prevented 25 | . . . . . . . . . . 6 . . . . . . . . . 7 12 . . . . . . Kills | -11 -10 -10 -9 -9 -9 -8 -8 -7 -7 -7 -7 -7 -6 -6 -6 -6 -6 -5 -5 -5 -5 -5 -4 -4 -4 -4 -3 ------- Run | Scr Mat Min Mat Min Exi Min Mat Fac Low Low Zio Dee Pro Fac Low Low Dat Pro Fac Upp Upp Zhi Pro Fac Arm Lab Res Combat Hostiles Destroyed 235 | . 7 4 24 14 3 7 28 50 . 3 . 3 1 14 3 . . 3 11 7 11 . . 33 4 1 4 Melee 1 | . . . . . . . . . . . . . . . . . . . . . . . . . . 1 . Guns 136 | . 6 4 16 . 3 5 23 41 . . . 3 1 12 1 . . 1 11 . . . . 8 . . 1 Cannons 21 | . . . . . . . 2 . . . . . . . . . . . . . . . . 17 . . 2 AOE 60 | . . . 8 14 . 1 . 8 . 3 . . . 2 2 . . 2 . 6 10 . . 1 3 . . Classes Destroyed 22 | 2 3 . 6 1 2 2 . 2 . 1 . 1 . . . . . . . 1 1 . . . . . . Worker 10 | . . . 3 . . . 2 2 . . . . . 3 . . . . . . . . . . . . . Builder 5 | . . . 2 . . . . 1 . . . . . . . . . . . . . . . 1 . . 1 Tunneler 6 | 5 . . . . . . . . . . . . . 1 . . . . . . . . . . . . . Hauler 12 | . . . 6 . . . 5 1 . . . . . . . . . . . . . . . . . . . Recycler 17 | 1 2 . 1 . . . 3 3 . . . . . 3 . . . . . . . . . 3 . . 1 Mechanic 3 | . . . 1 . . . 1 1 . . . . . . . . . . . . . . . . . . . Operator 7 | . . . 2 . . . 1 2 . . . . . . . . . . 1 . . . . . . . 1 Turret 1 | . . . . . 1 . . . . . . . . . . . . . . . . . . . . . . Watcher 29 | . 3 . 5 . . . 5 4 . . . . . 3 . . . . 5 . . . . 3 . . 1 Swarmer 41 | . 3 3 9 . . . . 3 . . . . . 2 1 . . 1 . . 10 . . 5 4 . . Grunt 85 | . 4 1 8 . . 5 16 35 . 2 . . . 3 1 . . 2 . 6 . . . 2 . . . Brawler 2 | . . . . . . . . 1 . 1 . . . . . . . . . . . . . . . . . Duelist 5 | . . . . . . 1 . 3 . . . . . . . . . . . 1 . . . . . . . Sentry 31 | . . . 7 . . . 8 4 . . . . 1 . 1 . . . 2 . . . . 6 . . 2 Hunter 21 | . . . . . . 1 4 1 . . . . . 4 . . . . 3 . . . . 8 . . . Programmer 28 | . . . . . . . . 5 . . . . . 5 . . . . 6 . . . . 12 . . . Behemoth 1 | . . . . . . . . . . . . . . . . . . . . . 1 . . . . . . Tracker 1 | . . . . . . . . . . . . . . . . . . . . . . . . . . . 1 Combat Programmer 1 | . . . . . . . . . . . . . . . . . . . . . . . . . . . 1 Zionite 8 | . . . . . 8 . . . . . . . . . . . . . . . . . . . . . . Z-Light 2 | . . . . . . . . . . . . 2 . . . . . . . . . . . . . . . Decomposer 1 | . . . . . . . . . . 1 . . . . . . . . . . . . . . . . . Samaritan 2 | . . . . . . . . . . . . . . . . . . . . 2 . . . . . . . Tinkerer 1 | . . . . . . . . . . 1 . . . . . . . . . . . . . . . . . Assembled 16 | . . . . 14 2 . . . . . . . . . . . . . . . . . . . . . . Best Kill Streak 14 | 5 3 3 6 14 6 3 4 6 . 3 . 3 1 5 2 . . 2 3 4 5 . . 6 3 1 3 Combat Bots Only 14 | . 3 3 5 14 2 3 4 4 . 3 . 3 1 2 2 . . 2 3 4 5 . . 5 3 1 1 Max Kills in Single Turn 5 | 1 2 2 5 5 1 1 2 4 . 2 . 1 1 2 2 . . 1 1 2 5 . . 2 3 1 1 Gunslinging 1 | . 1 1 . . . . . . . . . . . . . . . . . . . . . . . . . Exploded 5 | . . . 4 5 . 1 . 2 . 2 . . . 1 2 . . 1 . 2 5 . . 1 3 . . Melee 1 | . . . . . . . . . . . . . . . . . . . . . . . . . . 1 . Uniques/NPCs Destroyed 6 | . . . . . 4 . . . . . . 1 . . . . . . . . . . . . . 1 . 8R-AWN (-9/Exiles) EX-BIN (-9/Exiles) EX-HEX (-9/Exiles) EX-DEC (-9/Exiles) Z-Imprinter (-7/Deep Caves) A5 (-4/Lab) Combat | -11 -10 -10 -9 -9 -9 -8 -8 -7 -7 -7 -7 -7 -6 -6 -6 -6 -6 -5 -5 -5 -5 -5 -4 -4 -4 -4 -3 -------- Run | Scr Mat Min Mat Min Exi Min Mat Fac Low Low Zio Dee Pro Fac Low Low Dat Pro Fac Upp Upp Zhi Pro Fac Arm Lab Res Damage Taken 25296 | . 387 71 733 163 1320 664 2924 2854 . 134 . 840 51 1884 94 . . . 2199 895 346 . . 4532 188 1592 3425 Core 3110 | . 67 9 105 28 153 69 352 358 . 15 . 34 . 197 . . . . 350 32 48 . . 359 17 393 524 Absorbed by Shields 323 | . . . . . . . . . . . . . . . . . . . . . . . . . . . 323 Reduced by Siege Mode 151 | . . . . . . . . . . . . . . . . . . . . . . . . 151 . . . Core Remaining (%) 52 | 100 . 69 . . . 11 36 . . . . . 41 . . . . 76 . . . . 57 . . 28 . Volleys Fired 1289 | 24 73 15 93 6 129 15 148 113 . 9 4 26 3 97 5 22 . 15 133 22 44 40 14 165 17 4 53 Largest 2 | 1 2 2 2 1 2 2 2 2 . 2 1 2 2 2 2 1 . 2 2 1 1 1 1 2 1 1 1 Hottest 180 | 40 100 100 59 36 46 46 98 75 . 67 . 73 56 97 71 60 . 60 125 90 90 30 90 180 94 80 94 Shots Fired 1910 | 24 108 29 181 6 227 30 292 200 . 16 4 37 6 136 8 22 . 16 162 22 44 40 14 212 17 4 53 Gun 1492 | 24 82 28 175 . 198 28 266 183 . 12 . 37 6 124 5 22 . 13 158 . . 34 . 72 7 1 17 Cannon 265 | . . . . . . . 18 1 . . . . . 4 . . . . 2 15 32 . 14 138 4 3 34 Launcher 112 | . . . 6 6 29 2 8 16 . 4 . . . 8 3 . . 3 . 7 12 . . . 6 . 2 Special 41 | . 26 1 . . . . . . . . 4 . . . . . . . 2 . . 6 . 2 . . . Kinetic 1259 | . 54 28 175 . 198 25 240 170 . 12 . 22 6 74 5 . . 2 57 . . 34 . 106 7 3 41 Thermal 201 | . 26 1 . . . . 27 1 . . . 6 . . . . . . 15 15 32 . 14 64 . . . Explosive 56 | . . . 6 6 10 2 2 11 . 4 . . . 8 3 . . 3 . . 1 . . . . . . Electromagnetic 212 | 24 28 . . . 19 3 23 18 . . . . . 4 . . . . 12 7 11 . . 40 10 1 12 Phasic 168 | . . . . . . . . . . . . 9 . 50 . 22 . 11 76 . . . . . . . . Robot Hit Streak 47 | 8 12 5 14 2 11 9 47 10 . 5 . . . 9 1 . . 2 9 5 5 17 . 16 2 1 8 Robot Miss Streak 17 | 1 5 4 3 1 3 3 4 10 . 17 . . . 9 2 . . . 6 1 2 1 . 5 2 4 6 Penetration Max 1 | . . . . . . . . . . . . . . . . . . . . . . 1 . 1 . . . Secondary Targets 8 | . 1 1 . . . 1 3 . . . . . . . . . . . 2 . . . . . . . . Max Gunslinging Chain 1 | . 1 1 . . . 1 1 . . . . . . . . . . . 1 . . . . . . . . Autonomous 33 | . . . . . . 3 17 13 . . . . . . . . . . . . . . . . . . . Shots Hit Robots 992 | 21 52 16 121 4 153 20 225 51 . 8 1 6 4 14 3 . . 1 50 6 8 35 . 130 4 22 37 Core Hits 920 | 7 17 8 69 20 48 13 92 273 . 14 1 25 8 112 7 . . 7 63 14 16 14 . 56 6 6 24 Critical Hits 58 | . . . . . 2 1 3 . . . 1 . . . . . . . 8 . . 16 . 24 . 2 1 Critical Kills 18 | . . . . . . . 2 . . . 1 . . . . . . . 2 . . 2 . 10 . . 1 Critical Parts Destroyed 22 | . . . . . 1 1 1 . . . . . . . . . . . 3 . . 4 . 11 . 1 . Melee Attacks 159 | . . . . . 4 . . 27 . 26 6 12 6 2 . . . . 1 . . . . 12 5 40 18 Impact . | . . . . . . . . . . . . . . . . . . . . . . . . . . . . Slashing 58 | . . . . . . . . 27 . 25 6 . . . . . . . . . . . . . . . . Piercing 94 | . . . . . . . . . . . . 11 6 2 . . . . . . . . . 12 5 40 18 Sneak Attacks 15 | . . . . . 4 . . 5 . 2 . 1 . . . . . . . . . . . 2 . . 1 Combat Hostiles . | . . . . . . . . . . . . . . . . . . . . . . . . . . . . Follow-up Attacks . | . . . . . . . . . . . . . . . . . . . . . . . . . . . . Damage Inflicted 37184 | 277 565 155 2081 862 2694 682 4139 7404 . 1073 123 1147 508 2481 264 . . 222 1863 813 686 607 . 5792 328 1025 1393 Guns 18704 | 277 565 155 1477 . 1976 382 3618 4388 . 313 . 520 160 1674 51 . . 40 1794 . . 607 . 649 6 . 52 Cannons 6320 | . . . . . . . 275 . . . . . . . . . . . . 153 . . . 4768 105 . 1019 Explosions 8903 | . . . 604 862 718 300 240 2510 . 549 . . . 770 213 . . 182 46 660 686 . . 162 217 . 184 Melee 3208 | . . . . . . . . 506 . 211 123 627 348 37 . . . . . . . . . 193 . 1025 138 Ramming 49 | . . . . . . . 6 . . . . . . . . . . . 23 . . . . 20 . . . Kinetic 19312 | . 271 155 1477 . 1976 264 2945 3997 . 313 . 520 160 1608 51 . . 40 1106 . . 607 . 3014 6 . 802 Thermal 2632 | . . . . . . . 472 122 . . . . . 33 . . . . 217 317 135 . . 1336 . . . Explosive 6313 | . . . 604 862 413 300 . 2198 . 549 . . . 737 213 . . 182 46 . 209 . . . . . . Electromagnetic 5304 | 277 294 . . . 305 118 716 581 . . . . . . . . . . 171 496 342 . . 1229 322 . 453 Impact . | . . . . . . . . . . . . . . . . . . . . . . . . . . . . Slashing 840 | . . . . . . . . 506 . 211 123 . . . . . . . . . . . . . . . . Piercing 2368 | . . . . . . . . . . . . 627 348 37 . . . . . . . . . 193 . 1025 138 Phasic 366 | . . . . . . . . . . . . . . 66 . . . . 300 . . . . . . . . Highest Corruption 12 | . . . 1 1 2 1 1 8 3 . . . . 1 . . . . 6 . . . . 8 7 12 4 Average Corruption 2 | . . . 1 1 1 1 1 3 2 . . . . 1 . . . . 1 . . . . 4 3 7 1 Corruption Purged 59 | . . . . . 1 . . 11 3 . . . . 1 . . . . 9 . . . . 8 6 13 7 Effects 175 | . . . 2 2 16 1 2 40 . . . . . 8 . . . . 9 . . . . 48 6 38 3 Message Errors 53 | . . . 2 2 6 1 2 13 . . . . . . . . . . 3 . . . . 13 1 8 2 Matter Fused 27 | . . . . . . . . 6 . . . . . . . . . . 2 . . . . 6 3 10 . Heat Flow Errors 19 | . . . . . 1 . . 2 . . . . . . . . . . . . . . . 5 2 9 . Energy Discharges 9 | . . . . . 1 . . 3 . . . . . . . . . . . . . . . 4 . 1 . Parts Rejected 1 | . . . . . . . . . . . . . . . . . . . . . . . . . . 1 . Data Loss (minor) 32 | . . . . . 5 . . 8 . . . . . 7 . . . . 3 . . . . 7 . 1 1 Data Loss (major) 2 | . . . . . . . . . . . . . . . . . . . . . . . . 1 . 1 . Misfires 1 | . . . . . . . . 1 . . . . . . . . . . . . . . . . . . . Alerts 2 | . . . . . . . . . . . . . . . . . . . . . . . . . . 2 . Misdirections 3 | . . . . . . . . . . . . . . . . . . . . . . . . . . 3 . Targeting Errors 23 | . . . . . 2 . . 6 . . . . . 1 . . . . 1 . . . . 11 . 2 . Weapon Failures 3 | . . . . . 1 . . 1 . . . . . . . . . . . . . . . 1 . . . Overload Shots . | . . . . . . . . . . . . . . . . . . . . . . . . . . . . Overflow Damage 1087 | . . . 16 . 32 16 3 348 . 135 . . 155 143 . . . . 8 . . . . 176 23 13 19 Projectiles 185 | . . . . . . . 3 . . . . . . . . . . . . . . . . 158 15 . 9 Explosions 473 | . . . 16 . 32 16 . 229 . 10 . . . 143 . . . . . . . . . 18 8 . 1 Melee 429 | . . . . . . . . 119 . 125 . . 155 . . . . . 8 . . . . . . 13 9 Knockbacks 35 | . . . . . . . . . . . . . . . . . . . . . . . . 23 . . 12 Impact . | . . . . . . . . . . . . . . . . . . . . . . . . . . . . Kinetic 34 | . . . . . . . . . . . . . . . . . . . . . . . . 22 . . 12 Secondary 1 | . . . . . . . . . . . . . . . . . . . . . . . . 1 . . . Self-Inflicted Damage 573 | . . . . 9 . 60 . 102 . 61 . . . 120 . . . . 11 109 . . . 64 20 . 17 Shots 19 | . . . . 1 . 2 . 3 . 1 . . . 2 . . . . . 6 . . . 1 1 . 2 Rammed 3 | . . . . . . . 1 . . . . . . . . . . . 1 . . . . 1 . . . Targets Rammed 3 | . . . . . . . 1 . . . . . . . . . . . 1 . . . . 1 . . . Kicked . | . . . . . . . . . . . . . . . . . . . . . . . . . . . . Crushed . | . . . . . . . . . . . . . . . . . . . . . . . . . . . . Highest Temperature 523 | . 117 40 33 . 102 118 207 236 . 168 . 276 36 198 51 130 . 130 357 104 150 4 180 523 198 308 260 Average Temperature 74 | . 20 11 7 . 55 61 46 23 . 83 . 159 19 98 22 56 . 40 96 32 56 2 73 93 68 106 126 Received Heat Transfer 3552 | . 150 18 252 . . 207 1224 816 . 27 . 225 6 117 24 . . . 9 216 24 . . 225 . . 12 Effects 9 | . . . . . . . . . . . . 2 . . . . . . 3 . . . . 4 . . . Shutdowns 1 | . . . . . . . . . . . . . . . . . . . . . . . . 1 . . . Energy Bleed 2 | . . . . . . . . . . . . . . . . . . . 1 . . . . 1 . . . Interference 3 | . . . . . . . . . . . . 2 . . . . . . 1 . . . . . . . . Matter Decay 1 | . . . . . . . . . . . . . . . . . . . . . . . . 1 . . . Short Circuit 2 | . . . . . . . . . . . . . . . . . . . 1 . . . . 1 . . . Siege Activations 13 | . . . . . . . . . . . . . . . . . . . . . . . . 13 . . . Total Turns 146 | . . . . . . . . . . . . . . . . . . . . . . . . 146 . . . Longest Duration 22 | . . . . . . . . . . . . . . . . . . . . . . . . 22 . . . Robots Corrupted 19 | . 2 . . . 1 1 3 1 . . . . . . . . . . . 1 1 . . 7 1 . 1 Combat Hostiles 17 | . 1 . . . . 1 3 1 . . . . . . . . . . . 1 1 . . 7 1 . 1 Parts Fried 32 | 4 2 . . . 4 1 4 2 . . . . . . . . . . . 1 1 . . 6 4 . 3 Impact Corruptions 1 | . . . . . . . . . . . . . . . . . . . 1 . . . . . . . . Robots Melted . | . . . . . . . . . . . . . . . . . . . . . . . . . . . . Combat Hostiles . | . . . . . . . . . . . . . . . . . . . . . . . . . . . . Parts Melted 3 | . . . . . . . . . . . . . . . . . . . 1 1 . . . 1 . . . Heat Transferred 2349 | . . . . . . . 753 100 . . . . . 50 . . . . 296 250 150 . . 750 . . . Parts Sabotaged . | . . . . . . . . . . . . . . . . . . . . . . . . . . . . Parts Stolen 4 | . . . . . . . . . . 4 . . . . . . . . . . . . . . . . . Parts Stripped . | . . . . . . . . . . . . . . . . . . . . . . . . . . . . Power Chain Reactions 10 | . . . . . . . 1 4 . . . . . . . . . . . 4 1 . . . . . . Missiles Intercepted . | . . . . . . . . . . . . . . . . . . . . . . . . . . . . Alert | -11 -10 -10 -9 -9 -9 -8 -8 -7 -7 -7 -7 -7 -6 -6 -6 -6 -6 -5 -5 -5 -5 -5 -4 -4 -4 -4 -3 ------- Run | Scr Mat Min Mat Min Exi Min Mat Fac Low Low Zio Dee Pro Fac Low Low Dat Pro Fac Upp Upp Zhi Pro Fac Arm Lab Res Peak Influence 1362 | 30 215 141 492 181 . 126 402 1362 . . . . . 705 . . . . 631 . . . . 1003 687 . 107 Initial 486 | . 19 14 . 181 . . 23 78 . . . . . . . . . . . . . . . . 486 . . Average 246 | 10 53 70 154 91 . 79 185 455 . . . . . 382 . . . . 263 . . . . 295 591 . 36 Maximum Alert Level 4 | . 1 . 2 . . . 2 4 . . . . . 3 . . . . 2 . . . . 3 2 . . Low Security (%) 61 | 100 98 100 73 100 . 100 51 27 . . . . . 43 . . . . 57 . . . . 68 . . 100 Level 1 15 | . 1 . 13 . . . 47 36 . . . . . 2 . . . . . . . . . 8 . . . Level 2 15 | . . . 13 . . . 1 11 . . . . . 52 . . . . 41 . . . . . 100 . . Level 3 5 | . . . . . . . . 13 . . . . . 1 . . . . . . . . . 22 . . . Level 4 1 | . . . . . . . . 10 . . . . . . . . . . . . . . . . . . . Level 5 . | . . . . . . . . . . . . . . . . . . . . . . . . . . . . High Security . | . . . . . . . . . . . . . . . . . . . . . . . . . . . . Max Security . | . . . . . . . . . . . . . . . . . . . . . . . . . . . . Squads Dispatched 78 | . 3 2 4 . . . 9 24 . . . . . 8 . . . . 9 . . . . 10 2 . 7 Investigation 19 | . 3 1 2 . . . 5 3 . . . . . . . . . . 3 . . . . . . . 2 Extermination 22 | . . . . . . . . 6 . . . . . 5 . . . . 3 . . . . 6 . . 2 Reinforcement 19 | . . . 2 . . . 3 6 . . . . . 2 . . . . 1 . . . . 3 1 . 1 Assault 7 | . . 1 . . . . . 1 . . . . . 1 . . . . 2 . . . . 1 1 . . Garrison 9 | . . . . . . . 1 8 . . . . . . . . . . . . . . . . . . . Intercept 2 | . . . . . . . . . . . . . . . . . . . . . . . . . . . 2 Construction Impeded 6 | . . . . . . . 1 2 . . . . . 1 . . . . 1 . . . . . . . 1 Haulers Reinforced 3 | . . . . . . . . 1 . . . . . . . . . . . . . . . 2 . . . Stealth | -11 -10 -10 -9 -9 -9 -8 -8 -7 -7 -7 -7 -7 -6 -6 -6 -6 -6 -5 -5 -5 -5 -5 -4 -4 -4 -4 -3 --------- Run | Scr Mat Min Mat Min Exi Min Mat Fac Low Low Zio Dee Pro Fac Low Low Dat Pro Fac Upp Upp Zhi Pro Fac Arm Lab Res Distress Signals 13 | . . 1 1 . . . 3 2 . . . . . . . . . . 1 . . . . 2 2 . 1 Communications Jammed . | . . . . . . . . . . . . . . . . . . . . . . . . . . . . Distress Signals . | . . . . . . . . . . . . . . . . . . . . . . . . . . . . Times Spotted 414 | . 16 9 43 22 26 10 52 72 . 7 . 3 1 28 2 . . 1 31 7 6 . . 54 13 1 10 Peak Tracking Total 14 | . 3 3 6 14 9 3 7 5 . 4 . 3 1 4 1 . . 1 4 4 5 . . 7 5 1 4 Tactical Retreats 23 | . . . 2 . 4 . 1 5 . . . . . 2 2 . . . 4 . . . . 2 1 . . Traps | -11 -10 -10 -9 -9 -9 -8 -8 -7 -7 -7 -7 -7 -6 -6 -6 -6 -6 -5 -5 -5 -5 -5 -4 -4 -4 -4 -3 ------- Run | Scr Mat Min Mat Min Exi Min Mat Fac Low Low Zio Dee Pro Fac Low Low Dat Pro Fac Upp Upp Zhi Pro Fac Arm Lab Res Traps Triggered 7 | . . . . . . . 1 1 . . . . . . . . . . . . . . . . 4 . 1 Indirectly 4 | . . . . . . . . . . . . . . . . . . . . . . . . . 4 . . Trap Hack Attempts . | . . . . . . . . . . . . . . . . . . . . . . . . . . . . Triggered . | . . . . . . . . . . . . . . . . . . . . . . . . . . . . Disarmed . | . . . . . . . . . . . . . . . . . . . . . . . . . . . . Reprogrammed . | . . . . . . . . . . . . . . . . . . . . . . . . . . . . Reused 5 | . . . . . 5 . . . . . . . . . . . . . . . . . . . . . . Traps Extracted . | . . . . . . . . . . . . . . . . . . . . . . . . . . . . Installed 5 | . . . . . 5 . . . . . . . . . . . . . . . . . . . . . . Triggered 1 | . . . . . . . . . . 1 . . . . . . . . . . . . . . . . . Exploded 3 | . . . . . 3 . . . . . . . . . . . . . . . . . . . . . . Machines | -11 -10 -10 -9 -9 -9 -8 -8 -7 -7 -7 -7 -7 -6 -6 -6 -6 -6 -5 -5 -5 -5 -5 -4 -4 -4 -4 -3 ---------- Run | Scr Mat Min Mat Min Exi Min Mat Fac Low Low Zio Dee Pro Fac Low Low Dat Pro Fac Upp Upp Zhi Pro Fac Arm Lab Res Machines Disabled 48 | . 1 . 1 . 13 . 1 6 . 1 . 3 . 6 . . . 2 5 . . . . 6 . 2 1 Max in Single Turn 4 | . 1 . 1 . 2 . 1 3 . 1 . 1 . 4 . . . . 1 . . . . 2 . 1 1 Garrison Access 1 | . . . . . . . . . . . . . . . . . . . 1 . . . . . . . . Machines Sabotaged . | . . . . . . . . . . . . . . . . . . . . . . . . . . . . Garrisons Compromised . | . . . . . . . . . . . . . . . . . . . . . . . . . . . . Overloaded Fab Kills . | . . . . . . . . . . . . . . . . . . . . . . . . . . . . Fab Network Shutdowns 3 | . . . . . . . . . . . . . . 1 . . . . 1 . . . . 1 . . . Hacking | -11 -10 -10 -9 -9 -9 -8 -8 -7 -7 -7 -7 -7 -6 -6 -6 -6 -6 -5 -5 -5 -5 -5 -4 -4 -4 -4 -3 --------- Run | Scr Mat Min Mat Min Exi Min Mat Fac Low Low Zio Dee Pro Fac Low Low Dat Pro Fac Upp Upp Zhi Pro Fac Arm Lab Res Machines Accessed 122 | . 10 2 15 . 2 . 13 13 1 . . . . 19 . . 4 . 16 1 1 5 . 10 . 2 8 Terminals 59 | . 7 1 10 . . . 7 8 . . . . . 12 . . . . 8 . . . . 3 . . 3 Fabricators 11 | . . . . . . . . 2 . . . . . 2 . . . . 2 . . . . 3 . . 2 Repair Stations 12 | . 1 . 2 . . . 1 1 . . . . . 2 . . . . 2 . . . . 2 . . 1 Recycling Units 11 | . 2 . 1 . . . 2 1 . . . . . 1 . . . . 2 . . . . 2 . . . Scanalyzers 9 | . . . 2 . . . 2 . . . . . . 2 . . . . 1 . . . . . . . 2 Garrison Access 3 | . . . . . . . 1 1 . . . . . . . . . . 1 . . . . . . . . Total Hacks 423 | . 38 6 44 . 2 . 49 40 1 . . . . 55 . . 25 . 63 1 1 17 . 35 . 2 44 Successful 285 | . 24 4 32 . 2 . 35 19 1 . . . . 36 . . 25 . 43 1 1 17 . 19 . 2 24 Failed 134 | . 13 2 11 . . . 13 21 . . . . . 18 . . . . 20 . . . . 16 . . 20 Catastrophic 18 | . . 1 . . . . 1 5 . . . . . 4 . . . . 7 . . . . . . . . Database Lockouts 4 | . 1 . 1 . . . 1 . . . . . . 1 . . . . . . . . . . . . . Manual 216 | . 22 5 27 . 1 . 32 27 . 1 . . . 34 . . . . 35 . . . . 16 . 1 15 Terminals 216 | . 26 5 30 . . . 31 26 . . . . . 33 . . . . 28 . . . . 18 . . 19 Fabricators 51 | . . . . . . . . 6 . . . . . 11 . . . . 14 . . . . 9 . . 11 Repair Stations 34 | . 3 . 5 . . . 2 2 . . . . . 3 . . . . 8 . . . . 4 . . 7 Recycling Units 37 | . 9 . 5 . . . 7 3 . . . . . 1 . . . . 8 . . . . 4 . . . Scanalyzers 28 | . . . 4 . . . 7 . . . . . . 7 . . . . 3 . . . . . . . 7 Garrison Access 7 | . . . . . . . 2 3 . . . . . . . . . . 2 . . . . . . . . Terminal Hacks 112 | . 8 4 9 . 2 . 13 5 1 . . . . 8 . . 25 . 6 1 1 17 . 5 . 2 5 Record 22 | . . . . . 1 . . . . . . . . . . . 11 . . . . 6 . . . 2 2 Part Schematic 18 | . . 2 . . . . . 2 . . . . . 2 . . 5 . 3 . . 3 . 1 . . . Robot Schematic 7 | . . . . . . . . . . . . . . . . . 6 . . . . . . 1 . . . Robot Analysis 11 | . 2 1 1 . . . 3 . . . . . . . . . . . . . . 4 . . . . . Prototype ID Bank 15 | . 2 . 3 . . . 2 . . . . . . 1 . . 3 . . . . 4 . . . . . Open Door 4 | . . 1 . . . . . . 1 . . . . . . . . . . 1 1 . . . . . . Branch Access Points 4 | . . . . . . . 1 1 . . . . . 1 . . . . . . . . . 1 . . . Emergency Access Points 1 | . . . 1 . . . . . . . . . . . . . . . . . . . . . . . . Machine Index 1 | . . . . . . . . . . . . . . . . . . . . . . . . . . . 1 Terminal Index 7 | . 1 . 1 . . . 1 1 . . . . . 1 . . . . 1 . . . . 1 . . . Fabricator Index 3 | . . . . . . . . 1 . . . . . 1 . . . . . . . . . 1 . . . Scanalyzer Index 1 | . . . . . . . 1 . . . . . . . . . . . . . . . . . . . . Unreport Threat 4 | . . . 1 . . . 3 . . . . . . . . . . . . . . . . . . . . Locate Traps 2 | . 1 . . . . . . . . . . . . . . . . . . . . . . . . . 1 Recall Extermination 2 | . . . . . . . . . . . . . . . . . . . 1 . . . . . . . 1 Recall Assault 2 | . . . . . . . . . . . . . . 1 . . . . 1 . . . . . . . . Hauler Manifests 3 | . 1 . 1 . . . 1 . . . . . . . . . . . . . . . . . . . . Zone Layout 4 | . 1 . 1 . . . 1 . . . . . . 1 . . . . . . . . . . . . . EX-Prototype ID Bank 1 | . . . . . 1 . . . . . . . . . . . . . . . . . . . . . . Fabricator Hacks 32 | . . . . . . . . 4 . . . . . 8 . . . . 11 . . . . 5 . . 4 Load Schematic 13 | . . . . . . . . 2 . . . . . 2 . . . . 5 . . . . 2 . . 2 Build 19 | . . . . . . . . 2 . . . . . 6 . . . . 6 . . . . 3 . . 2 Repair Station Hacks 29 | . 3 . 2 . . . 2 2 . . . . . 2 . . . . 8 . . . . 4 . . 6 Scan Component 16 | . 2 . 2 . . . 1 1 . . . . . 1 . . . . 4 . . . . 2 . . 3 Repair 13 | . 1 . . . . . 1 1 . . . . . 1 . . . . 4 . . . . 2 . . 3 Recycling Unit Hacks 10 | . 2 . 1 . . . 2 . . . . . . 1 . . . . 3 . . . . 1 . . . Retrieve Matter 1 | . . . . . . . . . . . . . . . . . . . 1 . . . . . . . . Retrieve Components 9 | . 2 . 1 . . . 2 . . . . . . 1 . . . . 2 . . . . 1 . . . Scanalyzer 22 | . . . 4 . . . 7 . . . . . . 6 . . . . 2 . . . . . . . 3 Insert Component 12 | . . . 2 . . . 3 . . . . . . 3 . . . . 1 . . . . . . . 3 Analyze 10 | . . . 2 . . . 4 . . . . . . 3 . . . . 1 . . . . . . . . Garrison Access Hacks 1 | . . . . . . . . . . . . . . . . . . . 1 . . . . . . . . Seal Access 1 | . . . . . . . . . . . . . . . . . . . 1 . . . . . . . . Unauthorized Hacks 79 | . 11 . 16 . . . 11 8 . . . . . 11 . . . . 12 . . . . 4 . . 6 Terminals 59 | . 8 . 15 . . . 7 8 . . . . . 9 . . . . 5 . . . . 3 . . 4 Track 9 | . 3 . 5 . . . . 1 . . . . . . . . . . . . . . . . . . . Assimilate 12 | . . . 1 . . . 2 2 . . . . . 3 . . . . 3 . . . . . . . 1 Botnet 31 | . 4 . 7 . . . 4 5 . . . . . 5 . . . . 2 . . . . 2 . . 2 Operators 7 | . 1 . 2 . . . 1 . . . . . . 1 . . . . . . . . . 1 . . 1 Fabricators 6 | . . . . . . . . . . . . . . 2 . . . . 2 . . . . 1 . . 1 Report 4 | . . . . . . . . . . . . . . 1 . . . . 1 . . . . 1 . . 1 Siphon 2 | . . . . . . . . . . . . . . 1 . . . . 1 . . . . . . . . Repair Stations 1 | . . . . . . . . . . . . . . . . . . . . . . . . . . . 1 Mechanics 1 | . . . . . . . . . . . . . . . . . . . . . . . . . . . 1 Recycling Units 12 | . 3 . 1 . . . 3 . . . . . . . . . . . 5 . . . . . . . . Reject 3 | . . . . . . . 1 . . . . . . . . . . . 2 . . . . . . . . Recyclers 3 | . 1 . . . . . 1 . . . . . . . . . . . 1 . . . . . . . . Mask 5 | . 1 . 1 . . . 1 . . . . . . . . . . . 2 . . . . . . . . Tunnel 1 | . 1 . . . . . . . . . . . . . . . . . . . . . . . . . . Scanalyzers . | . . . . . . . . . . . . . . . . . . . . . . . . . . . . Garrison Access 1 | . . . . . . . 1 . . . . . . . . . . . . . . . . . . . . Reprogram 1 | . . . . . . . 1 . . . . . . . . . . . . . . . . . . . . Data Cores Recovered . | . . . . . . . . . . . . . . . . . . . . . . . . . . . . Used . | . . . . . . . . . . . . . . . . . . . . . . . . . . . . Hacking Detections 81 | . 9 1 10 . . . 11 13 . . . . . 11 . . . . 12 . . . . 8 . . 6 Full Trace Events 15 | . 2 . 2 . . . 3 3 . . . . . . . . . . 3 . . . . . . . 2 Feedback Events 2 | . . . 1 . . . 1 . . . . . . . . . . . . . . . . . . . . Corruption 2 | . . . 1 . . . 1 . . . . . . . . . . . . . . . . . . . . Feedback Blocked . | . . . . . . . . . . . . . . . . . . . . . . . . . . . . Robot Schematics Acquired 7 | . . . . . . . . . . . . . . . . . 6 . . . . . . 1 . . . Robots Built . | . . . . . . . . . . . . . . . . . . . . . . . . . . . . Matter . | . . . . . . . . . . . . . . . . . . . . . . . . . . . . Time . | . . . . . . . . . . . . . . . . . . . . . . . . . . . . Total Robot Build Rating . | . . . . . . . . . . . . . . . . . . . . . . . . . . . . Part Schematics Acquired 27 | . . 2 2 . . . 3 2 . . . . . 5 . . 5 . 4 . . 3 . 1 . . . Parts Built 22 | . . . . . . . . 4 . . . . . 6 . . . . 6 . . . . 3 . . 3 Matter 3713 | . . . . . . . . 336 . . . . . 1007 . . . . 981 . . . . 855 . . 534 Time 1245 | . . . . . . . . 84 . . . . . 530 . . . . 268 . . . . 252 . . 111 Total Part Build Rating 137 | . . . . . . . . 16 . . . . . 36 . . . . 45 . . . . 15 . . 25 Parts Repaired 13 | . 1 . . . . . 1 1 . . . . . 1 . . . . 4 . . . . 2 . . 3 Time 678 | . 26 . . . . . 38 38 . . . . . 44 . . . . 183 . . . . 112 . . 237 Parts Recycled . | . . . . . . . . . . . . . . . . . . . . . . . . . . . . Recycled Matter . | . . . . . . . . . . . . . . . . . . . . . . . . . . . . Retrieved Matter . | . . . . . . . . . . . . . . . . . . . . . . . . . . . . Retrieved Components 49 | . 5 . 9 . . . 19 . . . . . . 3 . . . . 3 . . . . 10 . . . Parts Scanalyzed 9 | . . . 2 . . . 3 . . . . . . 3 . . . . 1 . . . . . . . . Part Schematics Acquired 9 | . . . 2 . . . 3 . . . . . . 3 . . . . 1 . . . . . . . . Parts Damaged 3 | . . . 1 . . . 1 . . . . . . 1 . . . . . . . . . . . . . Bothacking | -11 -10 -10 -9 -9 -9 -8 -8 -7 -7 -7 -7 -7 -6 -6 -6 -6 -6 -5 -5 -5 -5 -5 -4 -4 -4 -4 -3 ------------ Run | Scr Mat Min Mat Min Exi Min Mat Fac Low Low Zio Dee Pro Fac Low Low Dat Pro Fac Upp Upp Zhi Pro Fac Arm Lab Res Used RIF Installer . | . . . . . . . . . . . . . . . . . . . . . . . . . . . . Robots Hacked 11 | . . . . . 4 . . . . 1 . 1 . . . . . . 1 . . 3 . 1 . . . Non-combat 4 | . . . . . 3 . . . . . . . . . . . . . . . . . . 1 . . . Combat 7 | . . . . . 1 . . . . 1 . 1 . . . . . . 1 . . 3 . . . . . Robot Hacks Applied 11 | . . . . . 4 . . . . 1 . 1 . . . . . . 1 . . 3 . 1 . . . parse_system 10 | . . . . . 4 . . . . 1 . 1 . . . . . . 1 . . 3 . . . . . find_chute 1 | . . . . . . . . . . . . . . . . . . . . . . . . 1 . . . Relay Couplers Released . | . . . . . . . . . . . . . . . . . . . . . . . . . . . . Robots Rewired 1 | . . . . . . . . . . . . . . . . . . . 1 . . . . . . . . Allies Hacked . | . . . . . . . . . . . . . . . . . . . . . . . . . . . . Hacks Repelled . | . . . . . . . . . . . . . . . . . . . . . . . . . . . . Allies | -11 -10 -10 -9 -9 -9 -8 -8 -7 -7 -7 -7 -7 -6 -6 -6 -6 -6 -5 -5 -5 -5 -5 -4 -4 -4 -4 -3 -------- Run | Scr Mat Min Mat Min Exi Min Mat Fac Low Low Zio Dee Pro Fac Low Low Dat Pro Fac Upp Upp Zhi Pro Fac Arm Lab Res Total Allies 17 | . . 3 1 1 . . 4 1 . . . 1 . 2 . . . 1 3 . . . . . . . . Largest Group 3 | . . 3 1 1 1 . 3 3 . . . 1 . 2 2 2 2 3 1 . . . . . . . . Highest-Rated Group 118 | . . 75 10 31 31 . 41 41 . . . 118 . 20 20 20 20 114 26 . . . . . . . . Highest-Rated Ally 118 | . . 31 10 31 31 . 16 26 . . . 118 . 10 10 10 10 94 26 . . . . . . . . Total Orders 69 | . . . 1 . . . 2 3 . . . . . 6 14 5 4 6 5 10 8 . . 3 . . 2 STAY 17 | . . . 1 . . . 1 2 . . . . . 3 5 . 2 . 3 . . . . . . . . FOLLOW 15 | . . . . . . . 1 1 . . . . . 3 6 . 2 . 2 . . . . . . . . EXPLORE 19 | . . . . . . . . . . . . . . . 2 3 . 3 . 5 4 . . 1 . . 1 RETURN 18 | . . . . . . . . . . . . . . . 1 2 . 3 . 5 4 . . 2 . . 1 Ally Attacks 68 | . . 33 . . . . 7 3 . . . 17 . . . . . 6 2 . . . . . . . . Total Damage 3828 | . . 482 . . . . 385 14 . . . 2365 . . . . . 497 85 . . . . . . . . Kills 23 | . . 8 . . . . 4 1 . . . 5 . . . . . 5 . . . . . . . . . Allies Corrupted . | . . . . . . . . . . . . . . . . . . . . . . . . . . . . Allies Melted . | . . . . . . . . . . . . . . . . . . . . . . . . . . . . Turrets Deployed 1 | . . . . . . . 1 . . . . . . . . . . . . . . . . . . . . Intel | -11 -10 -10 -9 -9 -9 -8 -8 -7 -7 -7 -7 -7 -6 -6 -6 -6 -6 -5 -5 -5 -5 -5 -4 -4 -4 -4 -3 ------- Run | Scr Mat Min Mat Min Exi Min Mat Fac Low Low Zio Dee Pro Fac Low Low Dat Pro Fac Upp Upp Zhi Pro Fac Arm Lab Res Robot Analysis Total 11 | . 2 1 1 . . . 3 . . . . . . . . . . . . . . 4 . . . . . Derelict Logs Recovered 16 | . . 1 . 3 . . . . 1 . 1 . 3 . 2 . . 1 . 2 2 . . . . . . Drone Launches 21 | . . . . . . . . . . . . . . . 2 3 . 3 . 6 5 . . 1 . . 1 Drone Recoveries 18 | . . . . . . . . . . . . . . . 1 3 . 3 . 6 4 . . . . . 1 Exploration | -11 -10 -10 -9 -9 -9 -8 -8 -7 -7 -7 -7 -7 -6 -6 -6 -6 -6 -5 -5 -5 -5 -5 -4 -4 -4 -4 -3 ------------- Run | Scr Mat Min Mat Min Exi Min Mat Fac Low Low Zio Dee Pro Fac Low Low Dat Pro Fac Upp Upp Zhi Pro Fac Arm Lab Res Turns Passed 43270 | 88 1524 970 3493 786 3271 520 3674 3691 1300 1679 1623 1359 1084 2611 1444 714 306 1047 3095 1131 1101 457 623 3215 305 1184 975 Spaces Moved 21469 | 45 1000 507 1549 362 1311 218 1290 1495 808 954 981 796 696 1425 852 312 193 548 1834 688 648 198 327 1417 113 270 632 Core 543 | 43 461 . . . . . . . . . . . . . . . . . . . . . . . . 35 4 Treads 9381 | 2 539 507 1549 362 1311 218 1188 1303 . 1 . . . 21 . . . . . . 308 198 327 1417 113 17 . Legs 69 | . . . . . . . 69 . . . . . . . . . . . . . . . . . . . . Wheels 10630 | . . . . . . . 33 192 808 953 981 796 696 1404 852 312 193 548 1834 688 340 . . . . . . Hover 846 | . . . . . . . . . . . . . . . . . . . . . . . . . . 218 628 Flight . | . . . . . . . . . . . . . . . . . . . . . . . . . . . . Fastest Speed 50 | 50 50 180 180 210 190 210 160 140 150 150 160 150 150 150 150 150 150 150 120 120 120 180 180 160 180 64 64 Average Speed 166 | 54 113 180 195 210 210 210 223 199 159 160 160 152 150 150 150 150 150 150 123 120 149 180 180 166 180 364 83 Slowest Speed 2100 | 160 180 180 210 210 230 210 330 265 160 280 160 160 150 200 150 150 150 150 150 120 260 180 180 180 180 2100 1950 Overloaded Moves . | . . . . . . . . . . . . . . . . . . . . . . . . . . . . Propulsion Burnouts . | . . . . . . . . . . . . . . . . . . . . . . . . . . . . Robots Hopped . | . . . . . . . . . . . . . . . . . . . . . . . . . . . . Cave-ins Triggered 3 | . . . . . . . . 1 . . . . . . . . . . . . . . . . . . 2 Teleports 1 | . . . . . . . . . . . . . . . . . . . . . . . . . 1 . . Exploration Rate (%) 69 | 3 99 98 96 97 90 61 92 36 97 82 87 81 88 35 90 78 70 95 38 82 90 60 49 30 9 97 13 Regions Visited 27 Branch Regions 19 Pre-discovered Areas 10 | . 1 . . 1 1 . . . . . 3 . . . . . 1 . . . . 3 . . . . . Known Exits Taken 24 | . 1 1 1 . . 1 1 1 1 1 1 1 1 1 1 1 1 1 1 1 1 1 1 1 1 1 . Unknown Exits Taken 3 | 1 . . . 1 1 . . . . . . . . . . . . . . . . . . . . . . Scrap Searched 36 | . . 1 . 1 . 2 . . 3 6 3 . 3 . 4 1 . 2 . 2 5 . 3 . . . . Spaces Dug 363 | . 15 . 34 . . . 9 22 . 22 . 19 2 89 . 19 . 10 46 15 9 . 6 29 3 . 14 Terrain Destroyed 925 | . 24 . 64 49 . 19 29 148 . 61 . 20 2 132 21 22 . 39 80 26 53 . 14 95 3 . 24 Melee 78 | . . . . . . . . 22 . 22 . 5 2 1 . . . . . . . . . 9 3 . 14 Projectile 322 | . 24 . . . . . 9 . . . . 15 . 47 . 22 . 11 68 11 32 . 14 59 . . 10 AOE 525 | . . . 64 49 . 19 20 126 . 39 . . . 84 21 . . 28 12 15 21 . . 27 . . . Terrain Rammed . | . . . . . . . . . . . . . . . . . . . . . . . . . . . . Walls Destroyed . | . . . . . . . . . . . . . . . . . . . . . . . . . . . . Machines Disabled . | . . . . . . . . . . . . . . . . . . . . . . . . . . . . Actions | -11 -10 -10 -9 -9 -9 -8 -8 -7 -7 -7 -7 -7 -6 -6 -6 -6 -6 -5 -5 -5 -5 -5 -4 -4 -4 -4 -3 --------- Run | Scr Mat Min Mat Min Exi Min Mat Fac Low Low Zio Dee Pro Fac Low Low Dat Pro Fac Upp Upp Zhi Pro Fac Arm Lab Res Total 26848 | 82 1242 543 1855 382 1619 253 1817 1963 821 1040 1023 885 717 1741 1005 535 209 756 2501 963 728 261 343 2008 184 390 982 Wait 2535 | 4 122 10 109 . 46 7 230 193 1 7 . 4 . 108 131 200 15 188 421 228 18 . . 213 38 2 240 Move 21442 | 44 999 506 1548 361 1310 217 1289 1494 807 953 980 795 695 1424 851 311 192 547 1833 687 647 197 326 1416 112 269 632 Hop . | . . . . . . . . . . . . . . . . . . . . . . . . . . . . Pick Up 279 | 5 15 3 31 7 38 1 25 23 4 4 13 7 4 24 2 . . 1 29 4 1 2 . 16 . 15 5 Fast Attach 165 | 4 7 . 5 . 5 3 33 9 . 5 4 9 . 7 2 . . . 6 3 4 8 . 28 2 10 11 Attach 149 | . . . 5 . 15 3 15 18 3 2 1 7 . 18 . . . . 11 1 2 1 . 25 1 14 7 Detach 110 | . 4 . 3 . 13 2 21 12 . 3 4 3 . 7 . . . . 2 . . 1 . 21 . 11 3 Swap 387 | . 14 4 27 3 12 2 19 51 2 21 1 10 6 35 10 2 2 4 40 13 9 4 3 69 7 8 9 Drop 325 | 1 8 5 34 5 42 3 36 23 4 10 10 12 3 19 4 . . 1 24 5 3 8 . 42 2 17 4 Fire 1289 | 24 73 15 93 6 129 15 148 113 . 9 4 26 3 97 5 22 . 15 133 22 44 40 14 165 17 4 53 Melee 159 | . . . . . 4 . . 27 . 26 6 12 6 2 . . . . 1 . . . . 12 5 40 18 Ram 1 | . . . . . . . . . . . . . . . . . . . 1 . . . . . . . . Kick . | . . . . . . . . . . . . . . . . . . . . . . . . . . . . Crush 2 | . . . . . . . 1 . . . . . . . . . . . . . . . . 1 . . . Escape Stasis . | . . . . . . . . . . . . . . . . . . . . . . . . . . . . Rewire . | . . . . . . . . . . . . . . . . . . . . . . . . . . . . Trap 5 | . . . . . 5 . . . . . . . . . . . . . . . . . . . . . . Miscellaneous . | . . . . . . . . . . . . . . . . . . . . . . . . . . . . Route ------- -11/Scrapyard -10/Materials (discovered 4 exits: *Mat x3 / *Min) -10/Mines (discovered 2 exits: *Mat x2) -9/Materials (discovered 3 exits: *Mat x2 / *Min) -9/Mines (discovered 3 exits: *Mat x2 / *Exi) -9/Exiles (discovered 2 exits: [*Min x2]) -8/Mines -8/Materials (discovered 3 exits: *Fac x3) -7/Factory (discovered 6 exits: *Fac x3 / Sto / *Low x2) -7/Lower Caves -7/Lower Caves (discovered 2 exits: *Fac / *Zio) -7/Zion (discovered 2 exits: *Dee / *Pro) -7/Deep Caves -6/Proximity Caves -6/Factory (discovered 4 exits: *Fac x2 / *Low x2) -6/Lower Caves -6/Lower Caves (discovered 2 exits: *Fac / *Dat) -6/Data Miner -5/Proximity Caves -5/Factory (discovered 2 exits: Fac / *Upp) -5/Upper Caves -5/Upper Caves -5/Zhirov -4/Proximity Caves -4/Factory (discovered 6 exits: Res / Upp x2 / *Ext x2 / *Arm) -4/Armory -4/Lab -3/Research History --------- Turn | Location | Event 35 | -11/Scrapyard | Discovered new exit (range 16) 89 | -11/Scrapyard | Entered Materials 191 | -10/Materials | Repaired Hcp. Storage Unit 235 | -10/Materials | Discovered new exit (range 9) 300 | -10/Materials | Build established: Mutant 354 | -10/Materials | Discovered new exit (range 2) 358 | -10/Materials | Central database locked down 390 | -10/Materials | Identified exit to Materials 474 | -10/Materials | Discovered new exit (range 6) 479 | -10/Materials | Identified exit to Mines 667 | -10/Materials | Discovered exit to Materials (range 11) 1613 | -10/Materials | Entered Mines 1614 | -10/Mines | Met a Derelict testing a Signal Generator 2182 | -10/Mines | Met a Derelict shopkeep closing up shop 2301 | -10/Mines | Discovered exit to Materials (range 11) 2355 | -10/Mines | Excavation squad dispatched 2355 | -10/Mines | A large section of the Mines collapsed 2472 | -10/Mines | Learned Materials trap positions 2486 | -10/Mines | Discovered exit to Materials (range 7) 2583 | -10/Mines | Entered Materials 2583 | -9/Materials | Evolved 2 slots: Utility x2 2584 | -9/Materials | Loaded intel: 23 trap records 2746 | -9/Materials | Central database locked down 2895 | -9/Materials | Build established: Hauler-Mutant 3107 | -9/Materials | Discovered new exit (range 9) 4372 | -9/Materials | Identified exit to Materials 4593 | -9/Materials | Discovered new exit (range 12) 4692 | -9/Materials | Identified exit to Mines 5649 | -9/Materials | Discovered exit to Materials (range 10) 6076 | -9/Materials | Entered Mines 6088 | -9/Mines | Received a Rocket Launcher from a helpful Derelict 6094 | -9/Mines | Assembled infested the area 6099 | -9/Mines | Assisted by a Guerilla fighting off Assembled 6137 | -9/Mines | Destroyed 14 combat bots 6228 | -9/Mines | Discovered exit to Materials (range 15) 6424 | -9/Mines | Learned Materials stockpile data 6499 | -9/Mines | Found a hidden stash of uninstalled traps 6699 | -9/Mines | Received a Mining Laser from a helpful Derelict 6851 | -9/Mines | Deemed a non-threat by the Exiles lab entrance 6851 | -9/Mines | Discovered new exit (range 5) 6862 | -9/Mines | Entered Exiles 6862 | -9/Exiles | Accompanied by 1 ally 6896 | -9/Exiles | Discovered new exit (range 15) 6919 | -9/Exiles | Met 8R-AWN 7102 | -9/Exiles | Met EX-HEX 7213 | -9/Exiles | Met EX-DEC 7276 | -9/Exiles | Learned location of Zion (-7) 7318 | -9/Exiles | Met EX-BIN 7349 | -9/Exiles | Aligned with FarCom system 7351 | -9/Exiles | Given EX-Vault access code 7399 | -9/Exiles | Opened EX-Vault 7410 | -9/Exiles | Found YOLO Cannon 7453 | -9/Exiles | Warned to stay clear of 0b10 Research branches 7637 | -9/Exiles | Discovered new exit (range 10) 7810 | -9/Exiles | Attacked by the Exiles 7989 | -9/Exiles | Core integrity fell below 50% 8069 | -9/Exiles | Destroyed 8R-AWN 8079 | -9/Exiles | Found 8R-AWN's Boregun 8556 | -9/Exiles | Found Prototype Device 8556 | -9/Exiles | Identified AS-neutralizer No. 17b 8564 | -9/Exiles | Found 8R-AWN's Boregun 8797 | -9/Exiles | Destroyed EX-BIN 8873 | -9/Exiles | Destroyed EX-HEX 8983 | -9/Exiles | Destroyed EX-DEC 9451 | -9/Exiles | Found AWS/Thermal 9459 | -9/Exiles | Found Latent Energy Streamer 9788 | -9/Exiles | Found System Purifier 9850 | -9/Exiles | Found Deploy-a-Sentry 9856 | -9/Exiles | Found AWS/EX-DEC 10133 | -9/Exiles | Stole four prototypes: AWS/Thermal, Latent Energy Streamer, YOLO Cannon, Deploy-a-Sentry 10133 | -9/Exiles | Entered Mines 10445 | -8/Mines | Core integrity fell below 20% 10582 | -8/Mines | Discovered exit to Materials (range 15) 10653 | -8/Mines | Entered Materials 10653 | -8/Materials | Evolved 2 slots: Utility x2 11323 | -8/Materials | Discovered new exit (range 8) 11460 | -8/Materials | Identified exit to Factory 12050 | -8/Materials | DAS Turret deployed 12100 | -8/Materials | Lost 6 parts (1p1n2u2w) 12194 | -8/Materials | Core integrity fell below 50% 12615 | -8/Materials | Discovered exit to Factory (range 5) 13599 | -8/Materials | Discovered exit to Factory (range 15) 13676 | -8/Materials | Repaired Imp. Light Armor Plating 13724 | -8/Materials | Central database locked down 13863 | -8/Materials | Garrison activated, responded to threat 14327 | -8/Materials | Entered Factory 14327 | -7/Factory | Accompanied by 3 allies 14327 | -7/Factory | Evolved 2 slots: Utility x2 14963 | -7/Factory | Repaired Missile Launcher 15200 | -7/Factory | Discovered new exit (range 4) 15200 | -7/Factory | Discovered new exit (range 15) 15202 | -7/Factory | Garrison activated, responded to threat 15244 | -7/Factory | Identified exit to Factory 15518 | -7/Factory | Garrison activated, responded to threat 16398 | -7/Factory | Identified exit to Storage 16398 | -7/Factory | Identified exit to Lower Caves 16625 | -7/Factory | Discovered exit to Factory (range 16) 16991 | -7/Factory | Crushed by falling debris 17134 | -7/Factory | Garrison activated, responded to threat 17294 | -7/Factory | Fabricated Flak Gun? 17365 | -7/Factory | Fabricated Flak Gun (x2) 17396 | -7/Factory | Garrison activated, responded to threat 17527 | -7/Factory | First assault squad dispatched 17778 | -7/Factory | Core integrity fell below 50% 18018 | -7/Factory | Entered Lower Caves 18346 | -7/Lower Caves | Learned location of 1 exit from Factory 19013 | -7/Lower Caves | Discovered new exit (range 2) 19015 | -7/Lower Caves | Identified exit to Lower Caves 19318 | -7/Lower Caves | Entered another Lower Caves area 19323 | -7/Lower Caves | Encountered a Warlord checkpoint 19391 | -7/Lower Caves | Discovered exit to Factory (range 9) 20623 | -7/Lower Caves | Acquired the password to a Derelict Tinkerer's latest research 20653 | -7/Lower Caves | Found Prototype Special Weapon 20653 | -7/Lower Caves | Identified Molecular Deconstructor 20738 | -7/Lower Caves | Discovered new exit (range 15) 20741 | -7/Lower Caves | Encountered a Master Thief 20741 | -7/Lower Caves | Encountered a Master Thief 20741 | -7/Lower Caves | Spotted HO-2X4(f) 20742 | -7/Lower Caves | Encountered a Master Thief 20742 | -7/Lower Caves | Spotted GK-9MX(f) 20742 | -7/Lower Caves | Spotted 1Y-EFB(f) 20743 | -7/Lower Caves | Latent Energy Streamer stolen by Master Thief 20745 | -7/Lower Caves | Spotted NO-2KP(f) 20746 | -7/Lower Caves | Encountered a Master Thief 20749 | -7/Lower Caves | YOLO Cannon stolen by Master Thief 20752 | -7/Lower Caves | AWS/Thermal stolen by Master Thief 20757 | -7/Lower Caves | AWS/EX-DEC stolen by Master Thief 20856 | -7/Lower Caves | Identified exit to Zion 20997 | -7/Lower Caves | Entered Zion 21154 | -7/Zion | Learned location of Warlord (-4) 21198 | -7/Zion | Discovered new exit (range 16) 21221 | -7/Zion | Identified exit to Proximity Caves 21528 | -7/Zion | Found CR-A16's Pointy Stick 21651 | -7/Zion | Received a hallucinogenic algorithm 21707 | -7/Zion | Learned location of Data Miner (-6) 21748 | -7/Zion | Found Prototype Processor 21757 | -7/Zion | Found Prototype Processor 21915 | -7/Zion | Found Prototype Device 21915 | -7/Zion | Identified Phasing AFG 22615 | -7/Zion | Discovered new exit (range 4) 22617 | -7/Zion | Saw the warning signs outside the Deep Caves entrance 22619 | -7/Zion | Identified exit to Deep Caves 22620 | -7/Zion | Entered Deep Caves 22622 | -7/Deep Caves | Met 5H-AD0 22742 | -7/Deep Caves | Z-Facility disabled 22756 | -7/Deep Caves | Attacked by Z-Imprinter 22790 | -7/Deep Caves | Destroyed Z-Imprinter 22804 | -7/Deep Caves | Lost 4 parts (1p1u2w) 22911 | -7/Deep Caves | Found Zio. Weapon Casing 23203 | -7/Deep Caves | Found Prototype Protection 23203 | -7/Deep Caves | Identified Zio. Heavy Carapace 23212 | -7/Deep Caves | Found Zio. Weapon Casing 23215 | -7/Deep Caves | Found Zio. Weapon Casing 23547 | -7/Deep Caves | Discovered new exit (range 7) 23556 | -7/Deep Caves | Identified exit to Proximity Caves 23901 | -7/Deep Caves | Spotted as-53969 23979 | -7/Deep Caves | Entered Proximity Caves 23981 | -6/Proximity Caves | Attracted the attention of an 0b10 checkpoint 24309 | -6/Proximity Caves | Learned location of 1 exit from Factory 24547 | -6/Proximity Caves | Learned 12 Factory zone layouts 25063 | -6/Proximity Caves | Entered Factory 25063 | -6/Factory | Evolved 2 slots: Utility x2 25064 | -6/Factory | Identified exit to Factory 25064 | -6/Factory | Identified exit to Lower Caves 25376 | -6/Factory | Lost 5 parts (1n3u1w) 25806 | -6/Factory | Fabricated Gyrokinetic Inverter? 25931 | -6/Factory | Fabricated Adv. Hacking Suite? 26170 | -6/Factory | Fabricated Adv. Hacking Suite? 26212 | -6/Factory | Fabricated Adv. Hacking Suite? 26254 | -6/Factory | Local fabrication network quarantined 26357 | -6/Factory | Fabricated Adv. Hacking Suite (x1) 26808 | -6/Factory | Central database locked down 26816 | -6/Factory | Discovered exit to Factory (range 6) 26832 | -6/Factory | Build established: Hacker-Mutant 26887 | -6/Factory | Identified Exp. Target Analyzer 26912 | -6/Factory | Repaired Arm. Huge Wheel 26929 | -6/Factory | Identified Exp. Core Analyzer 27163 | -6/Factory | First assault squad dispatched 27674 | -6/Factory | Entered Lower Caves 27674 | -6/Lower Caves | Accompanied by 2 allies 27808 | -6/Lower Caves | Learned 4 Factory zone layouts 28160 | -6/Lower Caves | Learned location of 1 exit from Factory 28169 | -6/Lower Caves | Encountered a Warlord checkpoint 28261 | -6/Lower Caves | Discovered new exit (range 41) 28796 | -6/Lower Caves | Attracted the attention of an 0b10 checkpoint 29084 | -6/Lower Caves | Identified exit to Lower Caves 29118 | -6/Lower Caves | Entered another Lower Caves area 29118 | -6/Lower Caves | Accompanied by 2 allies 29165 | -6/Lower Caves | Discovered exit to Factory (range 19) 29755 | -6/Lower Caves | Discovered new exit (range 8) 29767 | -6/Lower Caves | Identified exit to Data Miner 29832 | -6/Lower Caves | Entered Data Miner 29832 | -6/Data Miner | Accompanied by 2 allies 29832 | -6/Data Miner | Discovered new exit (range 6) 29841 | -6/Data Miner | Identified exit to Proximity Caves 30041 | -6/Data Miner | Met Data Miner 30069 | -6/Data Miner | Learned location of Section 7 (-2) 30069 | -6/Data Miner | Acquired the access code to Warlord's prototype stash 30092 | -6/Data Miner | Received God Mode back door access code from Data Miner 30138 | -6/Data Miner | Entered Proximity Caves 30138 | -5/Proximity Caves | Accompanied by 2 allies 30182 | -5/Proximity Caves | Escorted by Enhanced Grunt 30688 | -5/Proximity Caves | Learned Factory garrison access intel 31065 | -5/Proximity Caves | Discovered exit to Factory (range 60) 31185 | -5/Proximity Caves | Entered Factory 31185 | -5/Factory | Evolved 2 slots: Propulsion x2 31186 | -5/Factory | Identified exit to Factory 31188 | -5/Factory | Loaded intel: 3 garrison access locations 31585 | -5/Factory | Discovered new exit (range 5) 31590 | -5/Factory | Identified exit to Upper Caves 31737 | -5/Factory | Incoming investigation squad redirected 32373 | -5/Factory | Fabricated Com. HERF Cannon? 32391 | -5/Factory | Fabricated Cmb. Antigrav System? 32422 | -5/Factory | Repaired Arm. Huge Wheel 32446 | -5/Factory | Repaired Arm. Huge Wheel 32599 | -5/Factory | Lost 4 parts (1p2u1w) 32912 | -5/Factory | Fabricated Cmb. Antigrav System (x2) 32913 | -5/Factory | Fabricated Exp. Signal Interpreter (x1) 32993 | -5/Factory | Local fabrication network quarantined 33285 | -5/Factory | First assault squad dispatched 33314 | -5/Factory | Incoming assault squad redirected 33415 | -5/Factory | Repaired Lyr. Medium Armor Plating 33510 | -5/Factory | Repaired Exp. Heat Sink 34280 | -5/Factory | Entered Upper Caves 34954 | -5/Upper Caves | Learned Factory stockpile data 35316 | -5/Upper Caves | Discovered new exit (range 20) 35345 | -5/Upper Caves | Learned location of 2 exits from Factory 35396 | -5/Upper Caves | Identified exit to Upper Caves 35411 | -5/Upper Caves | Entered another Upper Caves area 35911 | -5/Upper Caves | Spotted B-75 Beast 35925 | -5/Upper Caves | Destroyed B-75 Beast 36155 | -5/Upper Caves | Learned Factory emergency access door positions 36364 | -5/Upper Caves | Learned location of 1 exit from Proximity Caves 36499 | -5/Upper Caves | Discovered new exit (range 8) 36510 | -5/Upper Caves | Identified exit to Zhirov 36512 | -5/Upper Caves | Entered Zhirov 36512 | -5/Zhirov | Discovered new exit (range 3) 36514 | -5/Zhirov | Identified exit to Proximity Caves 36545 | -5/Zhirov | Met Zhirov 36582 | -5/Zhirov | Learned location of Quarantine (-2) 36582 | -5/Zhirov | Learned location of Testing (-3) 36582 | -5/Zhirov | Learned location of Command (-1) 36600 | -5/Zhirov | Zhirov requested help retrieving the SGEMP Prototype 36635 | -5/Zhirov | Found Alien Artifact 36635 | -5/Zhirov | Identified Integrated Reactor 36635 | -5/Zhirov | Installed Integrated Reactor, increased core energy generation (+10) 36657 | -5/Zhirov | Found Alien Artifact 36777 | -5/Zhirov | Found Hvy. Reflective Plating 36969 | -5/Zhirov | Entered Proximity Caves 37592 | -4/Proximity Caves | Entered Factory 37592 | -4/Factory | Evolved 2 slots: Power x1, Propulsion x1 37593 | -4/Factory | Identified exit to Research 37593 | -4/Factory | Identified exit to Extension 37950 | -4/Factory | Identified exit to Upper Caves 37950 | -4/Factory | Identified exit to Armory 38326 | -4/Factory | Repaired Imp. Medium Treads? 39491 | -4/Factory | Fabricated Exp. Sensor Array? 39496 | -4/Factory | Repaired Imp. Heavy Treads? 39962 | -4/Factory | Fabricated Lgt. Regenerative Plating (x1) 40017 | -4/Factory | Fabricated Lgt. Regenerative Plating (x1) 40085 | -4/Factory | Local fabrication network quarantined 40592 | -4/Factory | First assault squad dispatched 40613 | -4/Factory | Incoming assault squad redirected 40701 | -4/Factory | Found Prototype Launcher 40701 | -4/Factory | Identified Com. Tesla Bomb Launcher 40807 | -4/Factory | Entered Armory 41057 | -4/Armory | First assault squad dispatched 41072 | -4/Armory | Identified Transdimensional Reconstructor 41072 | -4/Armory | Warped through subspace to slip node 41072 | -4/Armory | Discovered new exit (range 1) 41072 | -4/Armory | Identified exit to Lab 41077 | -4/Armory | Incoming assault squad redirected 41112 | -4/Armory | Entered Lab 41112 | -4/Lab | Discovered exit to Research (range 9) 41136 | -4/Lab | Unable to decrypt terminal 41136 | -4/Lab | Opened the door to a hidden lab 41136 | -4/Lab | Detected by scanners 41137 | -4/Lab | Gained access to the hidden lab's interior 41141 | -4/Lab | Unable to decrypt terminal 41145 | -4/Lab | Confronted by A5 41168 | -4/Lab | Core integrity fell below 50% 41232 | -4/Lab | System corruption reached 10% 41267 | -4/Lab | Destroyed A5 41294 | -4/Lab | Lost 4 parts (1p3u) 41304 | -4/Lab | Found Prototype Hackware 41309 | -4/Lab | Found Prototype Hackware 41359 | -4/Lab | Found Alien Artifact 41396 | -4/Lab | Found Prototype Device 41396 | -4/Lab | Identified AEGIS Remote Shield 41405 | -4/Lab | Found Prototype Energy Cannon 41405 | -4/Lab | Identified Warp Cannon 41409 | -4/Lab | Found Prototype Energy Gun 41409 | -4/Lab | Identified Tachyon Dispersion Ray 41424 | -4/Lab | Unable to decrypt terminal 41442 | -4/Lab | Found Prototype Special Weapon 41442 | -4/Lab | Identified Gui. Remote Datajack 41473 | -4/Lab | Found Quantum Router 41475 | -4/Lab | Identified Exp. Hacking Suite 41477 | -4/Lab | Identified Exp. System Shield 41488 | -4/Lab | Found Alien Artifact 41492 | -4/Lab | Found Alien Artifact 41538 | -4/Lab | Found Transdimensional Reconstructor 41766 | -4/Lab | Build established: Wizard-Mutant 42296 | -4/Lab | Entered Research 42296 | -3/Research | Evolved 2 slots: Utility x2 42389 | -3/Research | Repaired Exp. Sensor Array 42479 | -3/Research | Repaired Tri-rail Accelerator 42548 | -3/Research | Repaired Com. HERF Cannon 42696 | -3/Research | Crushed by falling debris 42787 | -3/Research | Fabricated Adv. Cloaking Device? 42848 | -3/Research | Identified Core Regenerator 42868 | -3/Research | Identified Integrated Dissipator 42868 | -3/Research | Identified Core Reset Matrix 42918 | -3/Research | Found Exp. Hacking Suite 42925 | -3/Research | Crushed by falling debris 43005 | -3/Research | Build established: Hacker-Mutant 43040 | -3/Research | Fabricated Cmb. Antigrav System (x2) 43082 | -3/Research | Intercept squad dispatched 43096 | -3/Research | Spotted Tracker 43138 | -3/Research | Destroyed Tracker 43140 | -3/Research | Spotted Combat Programmer 43159 | -3/Research | Destroyed Combat Programmer 43168 | -3/Research | Lost 4 parts (2p2u) 43250 | -3/Research | Used Core Reset Matrix 43254 | -3/Research | Sensed 1 artifact in vicinity 43271 | -3/Research | Self-destructed Last Messages --------------- 43261_ Slug penetrates Wall. 43261_ Slug penetrates Door. 43262_ Slug penetrates Fabricator. 43262_ Penetrated by Slug. 43262_ Adv. Hacking Suite destroyed. 43262_ Slug penetrates Fabricator. 43262_ Destroyed Unknown Wheel. 43262_ P-80 Master resets K-01 Serf, system corruption cleaned. 43264_ P-80 Master resets P-80 Master, system corruption cleaned. 43264_ Slug penetrates Wall. 43264_ Penetrated by Slug. 43264_ Slug penetrates Wall. 43265_ Penetrated by Slug. 43265_ Quantum Router destroyed. 43268_ H-77 Assassin misfires. 43268_ Slug penetrates Wall. 43268_ P-80 Master resets H-77 Assassin, system corruption cleaned. 43270_ Critical hit. 43270_ Cmb. Antigrav System destroyed. 43271_ Penetrated by Slug. Map ----- +----------------------------------------------------+ | ?????????????????????????????????????????????????? | | ?????????????????????????????????????????????????? | | ?????????????????????????????????????????????????? | | ?????????????????????????????????????????????????? | | ?????????????????????????????????????????????????? | | ?????????????????????????????????????????????????? | | ?????????????????????????????????????????????????? | | ?????????????????????????????????????????????????? | | ?????????????????????????????????????????????????? | | ?????????????????????????????????????????????????? | | ?????????????????????????????????????????????????? | | ?????????????????????????????????????????????????? | | ?????????????????? ?????????????????????????????? | | ????????????????# ????????????????????????????? | | ????????????????# ########????????????????????? | | ????????????????# #????????????????????? | | ????????????????# #????????????????????? | | ????????????????# #????????????????????? | | ????????????????# #????????????????????? | | ????????????????# #????????????????????? | | ????????????????# #????????????????????? | | ???????????#+#### hh pp ############+????????? | | ??????????? ! k ???????? | | ?????????? !=![ ???????? | | ?????????? !!!]] ???????? | | ?????????? = *!@![ ???????? | | ??????????????########## ##############??????????? | | ?????????????????????? !%????????????????????????? | | ????????????????????? ?????????????????????????? | | ???????????????????? ?????????????????????????? | | ?????????????????? ??????????????????????????? | | ?????????????????# ??????????????????????????? | | ?????????????????# | ???????????????????????????? | | ?????????????????#####???????????????????????????? | | ?????????????????????????????????????????????????? | | ?????????????????????????????????????????????????? | | ?????????????????????????????????????????????????? | | ?????????????????????????????????????????????????? | | ?????????????????????????????????????????????????? | | ?????????????????????????????????????????????????? | | ?????????????????????????????????????????????????? | | ?????????????????????????????????????????????????? | | ?????????????????????????????????????????????????? | | ?????????????????????????????????????????????????? | | ?????????????????????????????????????????????????? | | ?????????????????????????????????????????????????? | | ?????????????????????????????????????????????????? | | ?????????????????????????????????????????????????? | | ?????????????????????????????????????????????????? | | ?????????????????????????????????????????????????? | +----------------------------------------------------+ Best States ------------- Heat Dissipation 69 Energy Generation 66 Energy Capacity 410 Matter Stores 300 Matter Capacity 300 Sight Range 20 Robot Scan Range 30 Terrain Scan Density 10 ECM Strength 2 Jamming Range 12 Power Amplification 40 Additional Mass Support 16 Armor Coverage 1600 Resistance: KI 30 Resistance: TH 25 Resistance: EX 50 Core Shielding 40 Utility Shielding 90 Weapon Shielding 100 Evasion (%) 52 Targeting Accuracy 8 Target Analysis 5 Core Analysis 10 Recoil Reduction 5 Salvage Targeting 2 Offensive Hacking 30 Defensive Hacking 41 Item Schematics ----------------- None Robot Schematics ------------------ None Fabricated ------------ Flak Gun | x2 | -7/Factory Flak Gun | x2 | -7/Factory Gyrokinetic Inverter | x2 | -6/Factory | Preloaded Adv. Hacking Suite | x1 | -6/Factory Adv. Hacking Suite | x1 | -6/Factory Adv. Hacking Suite | x1 | -6/Factory Adv. Hacking Suite | x1 | -6/Factory Com. HERF Cannon | x1 | -5/Factory Cmb. Antigrav System | x2 | -5/Factory Cmb. Antigrav System | x2 | -5/Factory Exp. Signal Interpreter | x1 | -5/Factory Exp. Sensor Array | x1 | -4/Factory Lgt. Regenerative Plating | x1 | -4/Factory Lgt. Regenerative Plating | x1 | -4/Factory Adv. Cloaking Device | x1 | -3/Research | Preloaded Cmb. Antigrav System | x2 | -3/Research Alien Tech Used ----------------- Integrated Reactor Transdimensional Reconstructor Core Reset Matrix Achievements -------------- None Challenges ------------ None Game ------ Seed ReactiveTargetingThrower Manual? 0 Play Time 06:24:35 Cumulative 424.4 hours Start 2021.07.22 @ 12:23:59 End 2021.07.23 @ 11:52:33 Sessions 5 Manual Loads 0 Difficulty Rogue Special Mode None Game No. 337 Rogue 337 Adventurer 0 Explorer 0 Win Type - Total 1 Types 0/0/0/1/0/0/0/0/0 Lore% 71 Gallery% 81 Achievement% 60 Wizard Run 0 Options --------- ASCII 0 Keyboard 1 Movement Numpad Keybinds 0 Fullscreen 1 Font 12/Terminus Map View 83x54 Tactical HUD 1 Map Filters NONE Filters NONE Steam 1 RUN: 4b2c95f5-e0e4-458f-8717-e0e72ffc3e31